Workbook

Sheet MSS
B1: Santeri Salmela | E1: 7.4.2005 Veteli
B2: YKKÖSPESIS | E2: Runkosarja | L2: Runkosarja TOP-10 | Q2: Jatkosarjat | X2: SUOMENSARJA | AA2: Runkosarja | AH2: Runkosarja TOP-10 | AM2: Jatkosarjat
B3: Vuosi | C3: Sija | D3: Seura | E3: OTT | F3: KUN | G3: LÖI | H3: TOI | I3: KL | J3: KL-% | L3: LÖI | M3: TOI | N3: L+T | O3: KL | Q3: OTT | R3: KUN | S3: LÖI | T3: TOI | U3: KL | V3: KL-% | X3: Vuosi | Y3: Sija | Z3: Seura | AA3: OTT | AB3: KUN | AC3: LÖI | AD3: TOI | AE3: KL | AF3: KL-% | AH3: LÖI | AI3: TOI | AJ3: L+T | AK3: KL | AM3: OTT | AN3: KUN | AO3: LÖI | AP3: TOI | AQ3: KL | AR3: KL-%
X4: 2020 | Y4: 7. | Z4: Ura 2 | AA4: 5 | AB4: 0 | AC4: 1 | AD4: 1 | AE4: 9 | AF4: 45.0 % | AG4: 20
X5: 2021 | Y5: 5. | Z5: VePe | AA5: 14 | AB5: 3 | AC5: 4 | AD5: 13 | AE5: 54 | AF5: 62.1 % | AG5: 87
X6: 2022 | Y6: 7. | Z6: VePe | AA6: 16 | AB6: 3 | AC6: 15 | AD6: 9 | AE6: 69 | AF6: 56.6 % | AG6: 122
X7: 2023 | Y7: 3. | Z7: ViVe 2 | AA7: 6 | AB7: 0 | AC7: 1 | AD7: 0 | AE7: 10 | AF7: 30.3 % | AG7: 33 | AM7: 2 | AN7: 0 | AO7: 0 | AP7: 0 | AQ7: 1 | AR7: 12.5 % | AS7: 8
B8: YHTEENSÄ | E8: =SUM(E4:E7) -> 0 | F8: =SUM(F4:F7) -> 0 | G8: =SUM(G4:G7) -> 0 | H8: =SUM(H4:H7) -> 0 | I8: =SUM(I4:I7) -> 0 | J8: 0.0 % | K8: =SUM(K4:K7) -> 0 | Q8: =SUM(Q4:Q7) -> 0 | R8: =SUM(R4:R7) -> 0 | S8: =SUM(S4:S7) -> 0 | T8: =SUM(T4:T7) -> 0 | U8: =SUM(U4:U7) -> 0 | V8: 0.0 % | W8: =SUM(W4:W7) -> 0 | X8: YHTEENSÄ | AA8: =SUM(AA4:AA7) -> 41 | AB8: =SUM(AB4:AB7) -> 6 | AC8: =SUM(AC4:AC7) -> 21 | AD8: =SUM(AD4:AD7) -> 23 | AE8: =SUM(AE4:AE7) -> 142 | AF8: =PRODUCT(AE8/AG8) -> 54.2 % | AG8: =SUM(AG4:AG7) -> 262 | AM8: =SUM(AM4:AM7) -> 2 | AN8: =SUM(AN4:AN7) -> 0 | AO8: =SUM(AO4:AO7) -> 0 | AP8: =SUM(AP4:AP7) -> 0 | AQ8: =SUM(AQ4:AQ7) -> 1 | AR8: =PRODUCT(AQ8/AS8) -> 12.5 % | AS8: =SUM(AS4:AS7) -> 8
B10: KAIKKI OTTELUT | E10: OTT | F10: KUN | G10: LÖI | H10: TOI | I10: KL | J10: KL-% | L10: ka/L | M10: ka/T | N10: ka/l+t | O10: ka/kl | R10: Seurat | T10: VePe = Veteli Pesis (2000), kasvattajaseura
B11: SUPERPESIS | E11: =PRODUCT(E7+Q7) -> 0 | F11: 0 | G11: 0 | H11: 0 | I11: 0 | J11: 0.0 % | K11: 0 | L11: 0.00 | M11: 0.00 | N11: 0.00 | O11: 0.00 | T11: Ura = Kannuksen Ura (1969)
B12: YKKÖSPESIS | E12: 0 | F12: 0 | G12: 0 | H12: 0 | I12: 0 | J12: 0.0 % | K12: 0 | L12: 0.00 | M12: 0.00 | N12: 0.00 | O12: 0.00 | T12: ViVe = Vimpelin Veto (1934)
B13: SUOMENSARJA | E13: =PRODUCT(AA8+AM8) -> 43 | F13: =PRODUCT(AB8+AN8) -> 6 | G13: =PRODUCT(AC8+AO8) -> 21 | H13: =PRODUCT(AD8+AP8) -> 23 | I13: =PRODUCT(AE8+AQ8) -> 143 | J13: =PRODUCT(I13/K13) -> 53.0 % | K13: =PRODUCT(AG8+AS8) -> 270 | L13: =PRODUCT((F13+G13)/E13) -> 0.63 | M13: =PRODUCT(H13/E13) -> 0.53 | N13: =PRODUCT((F13+G13+H13)/E13) -> 1.16 | O13: =PRODUCT(I13/E13) -> 3.33
B14: YHTEENSÄ | E14: =SUM(E11:E13) -> 43 | F14: =SUM(F11:F13) -> 6 | G14: 21 | H14: 23 | I14: 143 | J14: =PRODUCT(I14/K14) -> 53.0 % | K14: =SUM(K11:K13) -> 270 | L14: =PRODUCT((F14+G14)/E14) -> 0.63 | M14: =PRODUCT(H14/E14) -> 0.53 | N14: =PRODUCT((F14+G14+H14)/E14) -> 1.16 | O14: =PRODUCT(I14/E14) -> 3.33
